bitfinex-derivatives/quotes_BTCF0:USTF0_20250308
["timestamp","ask_amount","ask_price","bid_price","bid_amount"]
[1741399779623,0.3608,86109.0,86103.0,0.058086]
[1741399779824,0.2568,86108.0,86104.0,0.2689]
[1741399781525,0.2568,86108.0,86104.0,0.22483603]
[1741399781723,0.2568,86108.0,86105.0,0.1231]
[1741399781924,0.00017421,86115.0,86109.0,0.0580815]
[1741399782126,0.1236,86114.0,86111.0,0.1161615]
[1741399782326,0.2465,86114.0,86113.0,0.116159]
[1741399782530,0.00017421,86115.0,86114.0,0.1161576]
[1741399782726,0.00017421,86115.0,86114.0,0.2387576]
[1741399783429,0.00117421,86115.0,86114.0,0.2387576]
[1741399783930,0.00217421,86115.0,86114.0,0.2387576]
[1741399784331,0.1236,86123.0,86122.0,0.1161468]
[1741399784538,0.1236,86123.0,86117.0,0.0580767]
[1741399784737,0.1229,86122.0,86120.0,0.1161494]
[1741399785036,0.1229,86122.0,86121.0,0.2565]
[1741399786237,0.1229,86122.0,86121.0,0.3726482]
[1741399786532,0.1229,86122.0,86121.0,0.2565]
[1741399787032,0.1279,86122.0,86121.0,0.3726482]
[1741399787433,0.06189001,86122.0,86121.0,0.3726482]
[1741399787637,0.009,86122.0,86121.0,0.67568947]
[1741399787933,0.00011457,86130.0,86129.0,0.1161374]
[1741399788234,0.3608,86150.0,86137.0,0.1161258]
[1741399788439,0.3608,86150.0,86140.0,0.14030642]
[1741399788733,0.3608,86150.0,86140.0,0.19702174]
[1741399788939,0.3608,86164.0,86140.0,0.19702174]
[1741399789136,0.53419259,86161.0,86149.0,0.14030642]
[1741399789340,0.1351,86160.0,86150.0,0.1353]
[1741399789544,0.0580494,86158.0,86150.0,0.1353]
[1741399789734,0.1161056,86153.0,86150.0,0.1353]
[1741399789936,0.0580494,86158.0,86150.0,0.1353]
[1741399790238,0.30849259,86160.0,86150.0,0.1353]
[1741399790239,0.0580498,86157.0,86150.0,0.1353]
[1741399790438,0.1161077,86151.0,86150.0,0.1353]
[1741399790740,0.1161077,86151.0,86150.0,0.07754127]
[1741399792547,0.1201077,86151.0,86150.0,0.07754127]
[1741399792845,0.004,86151.0,86150.0,0.07754127]
[1741399793446,0.1201077,86151.0,86150.0,0.07754127]
[1741399793651,0.004,86151.0,86150.0,0.01978254]
[1741399796145,0.004,86151.0,86150.0,0.02078254]
[1741399796350,0.1349,86152.0,86150.0,0.03057421]
[1741399796747,0.1349,86152.0,86147.0,0.10078307]
[1741399797454,0.1349,86152.0,86150.0,0.001]
[1741399799246,0.251007,86152.0,86150.0,0.001]
[1741399799448,0.1161077,86151.0,86150.0,0.002]
[1741399799754,0.1161077,86151.0,86147.0,0.30594886]
[1741399799947,0.1261,86150.0,86147.0,0.30490886]
[1741399800147,0.1251,86150.0,86148.0,0.134]
[1741399800753,0.1241,86150.0,86148.0,0.134]
[1741399801249,0.1161118,86148.0,86147.0,0.001]
[1741399801452,0.0580565,86147.0,86122.0,0.01918161]
[1741399801648,0.0580565,86147.0,86122.0,0.00174161]
[1741399801649,0.1161455,86123.0,86122.0,0.00174161]
[1741399801951,0.1151455,86123.0,86122.0,0.00174161]
[1741399802348,0.125,86131.0,86122.0,0.01058377]
[1741399802548,0.116136,86130.0,86122.0,0.00174161]
[1741399802748,0.116136,86130.0,86123.0,0.07610886]
[1741399803054,0.127,86129.0,86123.0,0.07610886]
[1741399803354,0.2431375,86129.0,86123.0,0.07610886]
[1741399804751,0.1308,86128.0,86123.0,0.19225356]
[1741399805056,0.1308,86128.0,86123.0,0.07610886]
[1741399805256,0.1247,86127.0,86123.0,0.07610886]
[1741399805756,0.1308,86126.0,86123.0,0.01821772]
[1741399806154,0.08688,86153.0,86124.0,0.49361327]
[1741399806354,0.08688,86153.0,86138.0,0.14030642]
[1741399806552,0.1339,86158.0,86139.0,0.2569]
[1741399806747,0.1161046,86154.0,86139.0,0.3730237]
[1741399806952,0.1161037,86154.0,86140.0,0.116122]
[1741399807151,0.2029811,86156.0,86142.0,0.1161192]
[1741399807354,0.1339,86158.0,86143.0,0.1296]
[1741399807661,0.08688,86157.0,86148.0,0.25641772]
[1741399807856,0.1339,86158.0,86149.0,0.1296]
[1741399808155,0.2177,86163.0,86152.0,0.1161058]
[1741399808356,0.2177,86163.0,86153.0,0.1296]
[1741399808557,0.3337916,86163.0,86153.0,0.1296]
[1741399808857,0.08688,86165.0,86153.0,0.1296]
[1741399809159,0.08688,86165.0,86155.0,0.1161014]
[1741399809560,0.08688,86165.0,86156.0,0.1161006]
[1741399809763,0.08688,86165.0,86157.0,0.1296]
[1741399810364,0.08688,86165.0,86157.0,0.2456989]
[1741399810547,0.3340666,86167.0,86157.0,0.2456989]
[1741399810947,0.1160891,86165.0,86157.0,0.1296]
[1741399811152,0.1160903,86164.0,86157.0,0.1306]
[1741399811352,0.2649,86163.0,86157.0,0.1306]
[1741399811749,0.3809916,86163.0,86157.0,0.1306]
[1741399811954,0.3809916,86163.0,86157.0,0.07170886]
[1741399812162,0.3809916,86163.0,86157.0,0.07270886]
[1741399812865,0.1160932,86162.0,86157.0,0.07270886]
[1741399813264,0.2504,86161.0,86157.0,0.07270886]
[1741399813861,0.2504,86161.0,86157.0,0.001]
[1741399813862,0.1160983,86158.0,86157.0,0.001]
[1741399814362,0.1161064,86152.0,86151.0,0.0001189]
[1741399814562,0.5637464,86152.0,86151.0,0.0001189]
[1741399814752,0.5627464,86152.0,86151.0,0.0001189]
[1741399814951,0.44764,86152.0,86140.0,0.0001323]
[1741399815155,0.1161239,86139.0,86132.0,0.1277]
[1741399815356,0.1161239,86139.0,86132.0,0.2438333]
[1741399815960,0.3628704,86139.0,86125.0,0.00174152]
[1741399816160,0.3628704,86139.0,86126.0,0.05688292]
[1741399816161,0.4497104,86139.0,86126.0,0.05688292]
[1741399818070,0.1161414,86126.0,86125.0,0.0009074]
[1741399818463,0.2493,86130.0,86125.0,0.05865509]
[1741399818767,0.2439401,86127.0,86126.0,0.2492]
[1741399820067,0.1278,86127.0,86126.0,0.2492]
[1741399820263,0.2439401,86127.0,86126.0,0.2492]
[1741399821067,0.2439401,86127.0,86126.0,0.19130886]
[1741399821770,0.1161414,86126.0,86125.0,0.0009074]
[1741399821974,0.1161455,86123.0,86122.0,0.00014961]
[1741399822859,0.3805455,86123.0,86122.0,0.00014961]
[1741399823268,0.3815455,86123.0,86122.0,0.00014961]
[1741399824170,0.4154,86123.0,86086.0,0.0433652]
[1741399824473,0.1161819,86096.0,86087.0,0.39744]
[1741399824661,0.1161819,86096.0,86087.0,0.258334]
[1741399824865,0.1161819,86096.0,86087.0,0.2583333]
[1741399825060,0.1161819,86096.0,86088.0,0.1161921]
[1741399825260,0.3708819,86096.0,86087.0,0.14231423]
[1741399827064,0.3708819,86096.0,86087.0,0.08616528]
[1741399827265,0.2547,86096.0,86087.0,0.08616528]
[1741399827465,0.1161863,86093.0,86087.0,0.08616528]
[1741399827665,0.3708826,86096.0,86087.0,0.08616528]
[1741399827866,0.1161852,86094.0,86087.0,0.08616528]
[1741399828277,0.116187,86093.0,86087.0,0.08616528]
[1741399828475,0.116187,86093.0,86087.0,0.14451368]
[1741399828974,0.00017423,86104.0,86088.0,0.12883382]
[1741399829274,0.00017423,86104.0,86102.0,0.3608]
[1741399829469,0.3608,86111.0,86102.0,0.3608]
[1741399829667,0.3608,86111.0,86105.0,0.1161685]
[1741399829866,0.3608,86111.0,86102.0,0.3608]
[1741399829867,0.3608,86111.0,86109.0,0.1161637]
[1741399830064,0.3608,86111.0,86107.0,0.1161669]
[1741399830265,0.3608,86119.0,86104.0,0.1233]
[1741399830469,0.2614,86131.0,86120.0,0.116149]
[1741399830674,0.2614,86131.0,86121.0,0.1233]
[1741399830867,0.2614,86131.0,86125.0,0.3608]
[1741399831069,0.13870733,86140.0,86135.0,0.1161289]
[1741399831374,0.1247,86145.0,86138.0,0.116124]
[1741399831562,0.19675943,86154.0,86142.0,0.3608]
[1741399831563,0.13870733,86154.0,86142.0,0.3608]
[1741399831769,0.10441516,86153.0,86144.0,0.14030642]
[1741399831963,0.0581506,86152.0,86144.0,0.14030642]
[1741399832170,0.1161112,86149.0,86144.0,0.14030642]
[1741399832368,0.1314,86148.0,86144.0,0.14030642]
[1741399833268,0.1314,86148.0,86144.0,0.08241528]
[1741399833669,0.0030974,86152.0,86144.0,0.08241528]
[1741399833874,0.0030974,86152.0,86144.0,0.19853158]
[1741399834074,0.004,86148.0,86144.0,0.19853158]
[1741399834270,0.004,86148.0,86144.0,0.08241528]
[1741399835375,0.004,86148.0,86147.0,0.1161131]
[1741399835876,0.004,86148.0,86144.0,0.08241528]
[1741399835877,0.007,86148.0,86144.0,0.08241528]
[1741399836273,0.1296,86151.0,86144.0,0.02452414]
[1741399836779,0.2601,86151.0,86144.0,0.02452414]
[1741399836973,9.74e-05,86152.0,86144.0,0.02452414]
[1741399837168,0.1282,86164.0,86149.0,0.3608]
[1741399837373,0.1282,86164.0,86155.0,0.1161014]
[1741399837768,0.1282,86164.0,86156.0,0.127]
[1741399838175,5.728e-05,86163.0,86156.0,0.127]
[1741399838579,5.728e-05,86163.0,86160.0,0.1160948]
[1741399838778,5.728e-05,86163.0,86157.0,0.0580498]
[1741399838779,5.728e-05,86163.0,86161.0,0.127]
[1741399838977,5.728e-05,86163.0,86162.0,0.1160929]
[1741399839482,5.728e-05,86163.0,86162.0,0.05820176]
[1741399840679,0.00305728,86163.0,86162.0,0.05820176]
[1741399841280,0.00505728,86163.0,86161.0,0.127]
[1741399842085,0.00505728,86163.0,86162.0,0.3608]
[1741399842276,0.00505728,86163.0,86162.0,0.30290886]
[1741399842484,0.00505728,86163.0,86162.0,0.42640886]
[1741399843376,0.00405728,86163.0,86162.0,0.42640886]
[1741399843573,0.00405728,86163.0,86161.0,0.1271]
[1741399843883,0.00405728,86163.0,86144.0,0.3608]
[1741399843884,0.1161104,86150.0,86147.0,8.761e-05]
[1741399844073,0.2588,86149.0,86148.0,0.1271]
[1741399844279,0.2588,86149.0,86148.0,0.2477]
[1741399844471,0.1276,86149.0,86148.0,0.2477]
[1741399845383,0.1276,86149.0,86148.0,0.18980886]
[1741399846389,0.2437104,86149.0,86148.0,0.18980886]
[1741399846771,0.1276,86149.0,86148.0,0.18980886]
[1741399847485,0.2549,86149.0,86148.0,0.18980886]
[1741399847989,0.3710104,86149.0,86148.0,0.18980886]
[1741399848481,0.3710104,86149.0,86148.0,0.13191772]
[1741399849282,0.3710104,86149.0,86147.0,8.761e-05]
[1741399849283,0.2549,86149.0,86147.0,8.761e-05]
[1741399849484,0.0580584,86145.0,86126.0,0.00174141]
[1741399849680,0.1161401,86127.0,86126.0,0.00174141]
[1741399850078,0.1161401,86127.0,86126.0,0.05843456]
[1741399851389,0.1161401,86127.0,86126.0,0.00054342]
[1741399851578,0.1161463,86123.0,86121.0,0.1204]
[1741399851778,0.1161463,86123.0,86122.0,0.1233]
[1741399851978,0.1161463,86123.0,86118.0,0.00017412]
[1741399851979,0.1161509,86119.0,86118.0,0.00017412]
[1741399852173,0.11627449,86119.0,86118.0,0.00017412]
[1741399854583,0.0580772,86117.0,86106.0,0.2535]
[1741399854786,0.1161576,86114.0,86106.0,0.2535]
[1741399854988,0.4769576,86114.0,86106.0,0.2535]
[1741399855491,0.4769576,86114.0,86105.0,0.3608]
[1741399855691,0.4769576,86114.0,86105.0,0.36097412]
[1741399856387,0.4769576,86114.0,86105.0,0.00017412]
[1741399856891,0.4769576,86114.0,86105.0,0.05846842]
[1741399857490,0.1161684,86106.0,86105.0,0.00066485]
[1741399857686,0.1161778,86099.0,86098.0,0.00174214]
[1741399858393,0.0580848,86105.0,86098.0,0.00174214]
[1741399858593,0.1161759,86101.0,86098.0,0.00174214]
[1741399858796,0.1161759,86101.0,86099.0,0.1204]
[1741399859188,0.1161765,86100.0,86099.0,0.1204]
[1741399859387,0.00017412,86110.0,86099.0,0.1204]
[1741399859682,0.00017412,86110.0,86100.0,0.27884928]
[1741399859881,0.1161685,86106.0,86100.0,0.27884928]
[1741399860282,0.05825602,86110.0,86100.0,0.27884928]
[1741399860485,0.3608,86114.0,86101.0,0.07133103]
[1741399861084,0.3608,86114.0,86107.0,0.1161662]
[1741399861284,0.3608,86114.0,86108.0,0.3777]
[1741399861692,0.19373868,86122.0,86115.0,0.1161553]
[1741399861887,0.4474,86130.0,86116.0,0.248]
[1741399861888,0.0580688,86129.0,86116.0,0.248]
[1741399862293,0.1161536,86117.0,86116.0,0.248]
[1741399862697,0.00010887,86117.0,86116.0,0.248]
[1741399863608,0.00010887,86117.0,86116.0,0.19010886]
[1741399863796,0.00010887,86117.0,86116.0,0.20374765]
[1741399863993,0.12097392,86125.0,86124.0,0.1161441]
[1741399864193,0.00017392,86125.0,86124.0,0.12978289]
[1741399864399,0.00017392,86125.0,86124.0,0.38448289]
[1741399864786,0.00017392,86125.0,86124.0,0.3708441]
[1741399865191,0.1161441,86124.0,86123.0,0.3608]
[1741399865392,0.1264,86124.0,86123.0,0.3608]
[1741399865796,0.00017392,86125.0,86124.0,0.1161441]
[1741399865991,0.00017392,86125.0,86124.0,0.1324]
[1741399866597,0.00017392,86125.0,86124.0,0.07450886]
[1741399866795,0.00017392,86125.0,86124.0,0.20320886]
[1741399867197,0.3608,86156.0,86125.0,0.1927]
[1741399867401,0.3608,86160.0,86154.0,9.324e-05]
[1741399867598,0.1214,86159.0,86154.0,9.324e-05]
[1741399867797,0.1160988,86158.0,86154.0,9.324e-05]
[1741399868005,0.1161023,86155.0,86154.0,9.324e-05]
[1741399868905,0.1161054,86153.0,86146.0,0.00017412]
[1741399869099,0.1247,86152.0,86146.0,0.00017412]
[1741399869291,0.1247,86152.0,86151.0,0.4769077]
[1741399869499,8.748e-05,86155.0,86154.0,0.1161037]
[1741399869804,0.08656,86175.0,86165.0,0.1160888]
[1741399869805,0.2461,86166.0,86165.0,0.1160888]
[1741399869995,0.2461,86166.0,86165.0,0.4768888]
[1741399870807,0.2461,86166.0,86165.0,0.7265888]
[1741399871202,0.2501,86166.0,86165.0,0.7265888]
[1741399871803,0.2501,86166.0,86165.0,0.6105]
[1741399871804,0.2531,86166.0,86165.0,0.6105]
[1741399872404,0.2531,86166.0,86161.0,0.00010708]
[1741399872599,0.1160894,86165.0,86161.0,0.00010708]
[1741399872800,0.1160894,86165.0,86155.0,0.06271594]
[1741399872998,0.2492,86164.0,86155.0,0.19191594]
[1741399873606,0.3652905,86164.0,86155.0,0.19191594]
[1741399873906,0.00011284,86163.0,86155.0,0.19191594]
[1741399874309,0.26031284,86163.0,86155.0,0.19191594]
[1741399875203,0.26031284,86163.0,86155.0,0.001]
[1741399875408,0.116101,86156.0,86155.0,0.001]
[1741399875702,0.0580495,86158.0,86154.0,0.30390886]
[1741399875908,0.1161077,86151.0,86150.0,0.00012686]
[1741399876900,0.3624077,86151.0,86150.0,0.00012686]
[1741399877102,0.4821077,86151.0,86150.0,0.00012686]
[1741399877306,0.4811077,86151.0,86150.0,0.00012686]
[1741399877501,0.4811077,86151.0,86146.0,0.00017412]
[1741399877502,0.366,86151.0,86136.0,0.00174145]
[1741399877703,0.1161266,86137.0,86136.0,0.00174145]
[1741399877904,0.1151266,86137.0,86136.0,0.00174145]
[1741399878504,0.1141266,86137.0,86136.0,0.00174145]
[1741399879007,0.1141266,86137.0,86129.0,0.3608]
[1741399879008,0.1161287,86136.0,86129.0,0.4769364]
[1741399879204,0.2362287,86136.0,86129.0,0.4769364]
[1741399879508,0.1201,86136.0,86129.0,0.3608]
[1741399879714,0.1201,86136.0,86130.0,0.2535]
[1741399880103,0.1201,86136.0,86132.0,0.1161325]
[1741399880302,0.1201,86136.0,86133.0,0.2535]
[1741399880505,0.1201,86136.0,86135.0,0.1161293]
[1741399880706,0.08652,86141.0,86135.0,0.1161284]
[1741399880905,0.1201,86140.0,86134.0,0.1161305]
[1741399881105,0.1201,86140.0,86138.0,0.1161248]
[1741399881307,0.1201,86140.0,86139.0,0.1295]
[1741399881802,0.00017412,86145.0,86140.0,0.17435316]
[1741399882003,0.1201,86144.0,86141.0,0.2535]
[1741399882218,0.131,86143.0,86141.0,0.2535]
[1741399882804,0.131,86143.0,86142.0,0.1161198]
[1741399883321,0.00017412,86145.0,86144.0,0.1161171]
[1741399884806,0.00017412,86145.0,86144.0,0.05822596]
[1741399888015,0.00017412,86145.0,86142.0,0.3138595]
[1741399888213,0.00017412,86145.0,86144.0,0.1161171]
[1741399888819,0.00017412,86145.0,86138.0,0.3608]
[1741399889117,0.00017412,86145.0,86120.0,0.39779798]
[1741399889118,0.1161347,86131.0,86120.0,0.39779798]
[1741399889304,0.2532,86130.0,86121.0,0.1161471]
[1741399889510,0.3693365,86130.0,86128.0,0.05757669]
[1741399889718,0.3693365,86130.0,86128.0,0.00017412]
[1741399889918,0.1161374,86129.0,86128.0,0.00017412]
[1741399890418,0.3693374,86129.0,86128.0,0.00017412]
[1741399891018,0.3693374,86129.0,86126.0,0.1312]
[1741399891019,0.3693374,86129.0,86126.0,0.07348298]
[1741399891211,0.3693374,86129.0,86126.0,0.13094358]
[1741399891409,0.4769401,86127.0,86126.0,0.0574606]
[1741399891715,0.1161414,86126.0,86123.0,0.05919567]
[1741399892018,0.3695414,86126.0,86123.0,0.05919567]
[1741399893215,0.2534,86126.0,86123.0,0.05919567]
[1741399893411,0.2534,86126.0,86123.0,0.11726817]
[1741399893612,0.2534,86126.0,86124.0,0.2356441]
[1741399893817,0.2534,86126.0,86124.0,0.2391]
[1741399894119,0.2534,86126.0,86124.0,0.1196]
[1741399894321,0.3695424,86126.0,86124.0,0.1196]
[1741399894520,0.2534,86126.0,86124.0,0.1196]
[1741399894714,0.1161428,86125.0,86124.0,0.1196]
[1741399895015,0.2534,86126.0,86124.0,0.1196]
[1741399895215,0.2522,86125.0,86124.0,0.1196]
[1741399896013,0.2522,86125.0,86124.0,0.13704]
[1741399896214,0.2522,86125.0,86124.0,0.1196]
[1741399896413,0.2522,86125.0,86124.0,0.13704]
[1741399896810,0.1161468,86122.0,86121.0,0.00011831]
[1741399897011,0.1161563,86115.0,86114.0,0.30320129]
[1741399897521,0.0580772,86117.0,86111.0,0.05874645]
[1741399897724,0.2437576,86114.0,86111.0,0.05874645]
[1741399897916,0.6045576,86114.0,86111.0,0.05874645]
[1741399898116,0.60470166,86114.0,86106.0,0.00014654]
[1741399899816,0.116167,86107.0,86106.0,0.00014654]
[1741399900011,0.08644,86112.0,86098.0,0.01744]
[1741399900210,0.21404,86112.0,86098.0,0.07690053]
[1741399900418,0.122,86111.0,86102.0,0.1161727]
[1741399900621,0.2381623,86111.0,86104.0,0.1161706]
[1741399900821,0.1299,86110.0,86102.0,0.1161727]
[1741399901135,0.1161659,86108.0,86100.0,0.15736052]
[1741399901324,0.1299,86107.0,86100.0,0.15736052]
[1741399901621,0.1334,86107.0,86106.0,0.1161684]
[1741399901821,0.1299,86112.0,86110.0,0.116163]
[1741399902326,0.00017412,86122.0,86111.0,0.1284]
[1741399902327,0.1334,86120.0,86111.0,0.1284]
[1741399902517,0.1299,86113.0,86111.0,0.1284]
[1741399902718,0.1334,86112.0,86111.0,0.1284]
[1741399903125,0.1334,86112.0,86105.0,0.1268]
[1741399903322,0.1299,86111.0,86105.0,0.1268]
[1741399903621,0.1299,86111.0,86107.0,0.24522964]
[1741399903830,0.133,86110.0,86107.0,0.12906324]
[1741399904124,0.1161575,86115.0,86105.0,0.1268]
[1741399904320,0.14404544,86707.0,86105.0,0.1268]
[1741399904321,0.0976,86128.0,86113.0,0.7216]
[1741399904529,0.03662232,86128.0,86127.0,0.4769401]
[1741399906218,0.03662232,86128.0,86127.0,0.41904896]
[1741399907027,0.03662232,86128.0,86127.0,0.30290886]
[1741399907419,0.03662232,86128.0,86127.0,0.41904896]
[1741399907825,0.03662232,86128.0,86127.0,0.1161401]
[1741399908027,0.03662232,86128.0,86127.0,0.4769401]
[1741399908226,0.03662232,86128.0,86127.0,0.3608]
[1741399909223,0.03662232,86128.0,86127.0,0.30290886]
[1741399909423,0.16152232,86128.0,86127.0,0.30290886]
[1741399910020,0.16152232,86128.0,86127.0,0.41904896]
[1741399910329,0.1249,86128.0,86127.0,0.41904896]
[1741399910936,0.1249,86128.0,86127.0,0.54674896]
[1741399912129,0.00011153,86129.0,86127.0,0.54674896]
[1741399912333,0.00011153,86129.0,86128.0,0.1161387]
[1741399912726,0.00011153,86129.0,86128.0,0.2446387]
[1741399913328,0.00011153,86129.0,86128.0,0.3704387]
[1741399914028,0.00011153,86129.0,86126.0,0.1213]
[1741399914229,0.00011153,86129.0,86127.0,0.1258]
[1741399915336,0.00011153,86129.0,86127.0,0.18404886]
[1741399916635,0.00011153,86129.0,86126.0,0.2498]
[1741399917032,0.00011153,86129.0,86124.0,0.01744]
[1741399917337,0.1161495,86120.0,86119.0,0.00017412]
[1741399917841,0.1284,86121.0,86119.0,0.00017412]
[1741399918340,0.2446498,86120.0,86112.0,0.30308298]
[1741399918528,0.1161517,86119.0,86112.0,0.30308298]
[1741399918735,0.1258,86119.0,86112.0,0.30308298]
[1741399918932,0.1239,86118.0,86113.0,0.239759]
[1741399919333,0.1258,86117.0,86112.0,0.30308298]
[1741399919631,0.1161657,86108.0,86107.0,0.00017412]
[1741399920237,0.2497,86109.0,86107.0,0.00017412]
[1741399920442,0.3658657,86108.0,86107.0,0.00017412]
[1741399920638,0.2497,86108.0,86107.0,0.11634112]
[1741399921343,0.2497,86108.0,86107.0,0.05844998]
[1741399922442,0.2497,86108.0,86107.0,0.19498625]
[1741399924129,0.2497,86108.0,86107.0,0.18644998]
[1741399924539,0.2497,86108.0,86102.0,0.1305]
[1741399924732,0.2497,86108.0,86102.0,0.13913606]
[1741399924938,0.2497,86108.0,86102.0,0.00863606]
[1741399925129,0.1161723,86104.0,86100.0,0.00011124]
[1741399925332,0.2604,86103.0,86100.0,0.00011124]
[1741399926336,0.2604,86103.0,86100.0,0.00899725]
[1741399927547,0.2604,86103.0,86095.0,0.2441]
[1741399927748,0.2604,86103.0,86098.0,0.1161778]
[1741399927944,0.2604,86103.0,86098.0,0.24728753]
[1741399928148,0.2604,86103.0,86099.0,0.249]
[1741399930335,0.2604,86103.0,86099.0,0.1218]
[1741399930537,0.2604,86103.0,86098.0,0.05763955]
[1741399931938,0.3608,86139.0,86101.0,0.5535]
[1741399932138,0.1339,86128.0,86111.0,0.3608]
[1741399932338,0.1339,86128.0,86104.0,0.15728435]
[1741399932339,0.3608,86121.0,86112.0,0.1327]
[1741399932545,0.0580754,86119.0,86104.0,0.15728435]
[1741399932745,0.2500524,86118.0,86104.0,0.27345545]
[1741399933150,0.1339,86118.0,86108.0,0.1161649]
[1741399933350,0.1339,86118.0,86109.0,0.1161643]
[1741399933550,0.1339,86118.0,86109.0,0.05827316]
[1741399936049,0.1339,86118.0,86108.0,0.1161649]
[1741399936648,0.1339,86118.0,86108.0,0.05827376]
[1741399937252,0.1339,86118.0,86108.0,0.07571376]
[1741399937448,0.1277,86117.0,86108.0,0.05827376]
[1741399937840,0.1339,86116.0,86108.0,0.05827376]
[1741399938240,0.1339,86116.0,86108.0,0.3608]
[1741399938241,0.1277,86115.0,86108.0,0.3608]
[1741399938455,0.1277,86115.0,86114.0,0.1161576]
[1741399939355,0.1277,86115.0,86114.0,0.3798576]
[1741399939548,0.1277,86115.0,86114.0,0.32196646]
[1741399941553,0.1277,86115.0,86114.0,0.3798576]
[1741399941861,0.1339,86116.0,86114.0,0.3798576]
[1741399941862,0.00017412,86120.0,86119.0,0.1161509]
[1741399942245,0.00017412,86120.0,86119.0,0.2442509]
[1741399942457,0.07816412,86128.0,86119.0,0.2611]
[1741399942655,0.00011153,86129.0,86128.0,0.1161387]
[1741399942845,0.00011153,86129.0,86118.0,0.40432223]
[1741399943050,0.1161478,86122.0,86118.0,0.40432223]
[1741399943249,0.0580718,86125.0,86118.0,0.3608]
[1741399943250,0.1216,86121.0,86118.0,0.3608]
[1741399944351,0.1216,86121.0,86119.0,0.2557]
[1741399945154,0.1216,86121.0,86119.0,0.3718508]
[1741399945660,0.1216,86121.0,86119.0,0.1339]
[1741399945857,0.1266,86120.0,86119.0,0.1339]
[1741399948754,0.1266,86120.0,86118.0,0.3608]
[1741399948956,0.1235,86119.0,86118.0,0.3608]
[1741399950057,0.1235,86119.0,86109.0,0.04352223]
[1741399950058,0.1161603,86112.0,86109.0,0.04352223]
[1741399950259,0.1161603,86112.0,86106.0,0.04352223]
[1741399950657,0.3743603,86112.0,86106.0,0.04352223]
[1741399950852,0.3743603,86112.0,86099.0,0.01744]
[1741399951859,0.3743603,86112.0,86105.0,0.1161689]
[1741399951860,0.2582,86112.0,86105.0,0.1161689]
[1741399952066,0.2582,86112.0,86106.0,0.1262]
[1741399952366,0.1161635,86110.0,86103.0,0.1161718]
[1741399952566,0.2497,86109.0,86103.0,0.1161718]
[1741399953565,0.2497,86109.0,86102.0,0.1262]
[1741399953862,0.2497,86109.0,86105.0,0.1161691]
[1741399954062,0.2497,86109.0,86106.0,0.2567]
[1741399954867,0.2497,86109.0,86106.0,0.19880886]
[1741399956067,0.2497,86109.0,86107.0,0.01744]
[1741399956566,0.2497,86109.0,86108.0,0.1238]
[1741399957857,0.2497,86109.0,86108.0,0.06590886]
[1741399958256,0.2497,86109.0,86107.0,0.01744]
[1741399960767,0.2497,86109.0,86106.0,0.03215772]
[1741399960969,0.2497,86109.0,86107.0,0.01744]
[1741399962875,0.2497,86109.0,86105.0,0.04352223]
[1741399963470,0.2497,86109.0,86103.0,0.04352223]
[1741399963677,0.2497,86109.0,86104.0,0.1207]
[1741399963874,0.365865,86109.0,86104.0,0.10633109]
[1741399964169,0.2497,86109.0,86104.0,0.10633109]
[1741399964373,0.1161662,86108.0,86104.0,0.04352223]
[1741399964769,0.2556,86107.0,86102.0,0.1184]
[1741399965172,0.2556,86107.0,86100.0,0.01744]
[1741399966477,0.3717677,86107.0,86100.0,0.01744]
[1741399966975,0.3717677,86107.0,86099.0,0.2229087]
[1741399967478,0.3717677,86107.0,86099.0,0.3054087]
[1741399967874,0.1161778,86099.0,86098.0,0.07507955]
[1741399968075,0.1161778,86099.0,86098.0,0.05763955]
[1741399968782,0.4769778,86099.0,86098.0,0.05763955]
[1741399968969,0.4769778,86099.0,86098.0,0.00014704]
[1741399969870,0.3608,86099.0,86089.0,0.00150186]
[1741399970066,0.11619,86090.0,86089.0,0.05875582]
[1741399970879,0.359189,86091.0,86089.0,0.05875582]
[1741399971382,0.11619,86090.0,86089.0,0.05875582]
[1741399971872,0.35919,86090.0,86089.0,0.05875582]
[1741399973167,0.1161943,86087.0,86083.0,0.37824]
[1741399973371,0.0580956,86089.0,86083.0,0.3608]
[1741399973372,0.3591954,86086.0,86083.0,0.3608]
[1741399973568,0.3591954,86086.0,86083.0,0.37824]
[1741399973773,0.243,86086.0,86083.0,0.37824]
[1741399974077,0.243,86086.0,86083.0,0.3608]
[1741399974779,0.243,86086.0,86083.0,0.37824]
[1741399974980,0.243,86086.0,86083.0,0.05815614]
[1741399975181,0.243,86086.0,86081.0,0.12245565]
[1741399975380,0.243,86086.0,86082.0,0.09994]
[1741399975881,0.243,86086.0,86083.0,0.1302]
[1741399976078,0.243,86086.0,86083.0,0.07230886]
[1741399976277,0.243,86086.0,86083.0,0.08974886]
[1741399976480,0.243,86086.0,86084.0,0.0825]
[1741399978975,0.243,86086.0,86083.0,6.755e-05]
[1741399978976,0.3591965,86086.0,86083.0,6.755e-05]
[1741399979176,0.3591965,86086.0,86083.0,0.01744]
[1741399980183,0.243,86086.0,86081.0,0.36105565]
[1741399980380,0.243,86086.0,86082.0,0.1161998]
[1741399980581,0.243,86086.0,86082.0,0.32453891]
[1741399981878,0.243,86086.0,86085.0,0.3608]
[1741399982079,0.243,86086.0,86085.0,0.30290886]
[1741399983699,0.243,86086.0,86085.0,0.3608]
[1741399984488,0.243,86086.0,86085.0,0.4769967]
[1741399984789,0.243,86086.0,86085.0,0.3608]
[1741399985182,0.243,86086.0,86085.0,0.30290886]
[1741399985783,0.243,86086.0,86082.0,0.05673911]
[1741399985989,0.243,86086.0,86081.0,0.00025565]
[1741399986189,0.3591956,86086.0,86081.0,0.00025565]
[1741399987593,0.3591956,86086.0,86081.0,0.05906732]
[1741399987778,0.243,86086.0,86083.0,0.1161983]
[1741399987983,0.243,86086.0,86085.0,0.1161967]
[1741399988289,0.243,86086.0,86084.0,0.1472]
[1741399988483,0.243,86086.0,86085.0,0.1161967]
[1741399988688,0.243,86086.0,86084.0,0.1472]
[1741399989189,0.243,86086.0,86084.0,0.0781]
[1741399989687,0.243,86086.0,86085.0,0.24735905]
[1741399989887,0.243,86086.0,86085.0,0.31645905]
[1741399990486,0.17766845,86086.0,86085.0,0.35998128]
[1741399990887,0.00017423,86098.0,86097.0,0.1161805]
[1741399991202,0.00017423,86098.0,86097.0,0.05828936]
[1741399991988,0.00017423,86098.0,86097.0,0.30708936]